[Event "Ebbe Cup 48"]
[Site "Goteborgs Schackcentrum, Vegatan 20, Gothenburg, Sweden"]
[Date "2025.02.15"]
[Round "2.4"]
[White "Gallardo, Guillermo"]
[Black "Christoforidis, Nicolas"]
[Result "0-1"]
[TimeControl "90 minutes + 30 seconds per move from move one"]
[WhiteFideId "1773488"]
[BlackFideId "1789180"]
[WhiteElo "1773"]
[BlackElo "1886"]

1. Nf3 {[%emt 00:00:02]} d5 {[%emt 00:01:33]} 2. d4 {[%clk 01:28:10]} {[%emt
00:01:15]} Nf6 {[%clk 01:28:13]} {[%emt 00:02:47]} 3. c4 {[%clk 01:26:28]}
{[%emt 00:02:12]} e6 {[%clk 01:20:48]} {[%emt 00:07:54]} 4. Nc3 {[%clk
01:18:04]} {[%emt 00:08:55]} c5 {[%clk 01:11:30]} {[%emt 00:09:48]} 5. e3
{[%clk 01:08:17]} {[%emt 00:10:18]} Nc6 {[%clk 01:06:04]} {[%emt 00:05:55]} 6.
cxd5 {[%clk 01:02:37]} {[%emt 00:06:10]} exd5 {[%clk 01:05:40]} {[%emt
00:00:54]} 7. Bb5 {[%clk 00:59:37]} {[%emt 00:03:31]} a6 {[%clk 00:56:34]}
{[%emt 00:09:35]} 8. Be2 {[%clk 00:51:44]} {[%emt 00:08:24]} c4 {[%clk
00:53:49]} {[%emt 00:03:14]} 9. O-O {[%clk 00:48:54]} {[%emt 00:03:20]} Bd6
{[%clk 00:48:53]} {[%emt 00:05:26]} 10. a3 {[%clk 00:39:40]} {[%emt 00:09:44]}
O-O {[%clk 00:45:46]} {[%emt 00:03:37]} 11. b4 {[%clk 00:25:33]} {[%emt
00:14:37]} b5 {[%clk 00:44:33]} {[%emt 00:01:43]} 12. Bb2 {[%clk 00:23:46]}
{[%emt 00:02:18]} h6 {[%clk 00:39:06]} {[%emt 00:05:56]} 13. Ne1 {[%clk
00:19:18]} {[%emt 00:04:59]} Bc7 {[%clk 00:32:05]} {[%emt 00:07:31]} 14. f4
{[%clk 00:16:51]} {[%emt 00:02:56]} Qe7 {[%clk 00:28:18]} {[%emt 00:04:16]} 15.
Qd2 {[%clk 00:16:16]} {[%emt 00:01:05]} Re8 {[%clk 00:27:28]} {[%emt 00:01:20]}
16. Nd1 {[%clk 00:15:32]} {[%emt 00:01:15]} Ne4 {[%clk 00:23:36]} {[%emt
00:04:21]} 17. Qc1 {[%clk 00:15:32]} {[%emt 00:00:31]} a5 {[%clk 00:21:14]}
{[%emt 00:02:53]} 18. Nc3 {[%clk 00:11:16]} {[%emt 00:04:45]} Nxc3 {[%clk
00:21:15]} {[%emt 00:00:29]} 19. Qxc3 {[%clk 00:11:25]} {[%emt 00:00:21]} axb4
{[%clk 00:20:57]} {[%emt 00:00:48]} 20. axb4 {[%clk 00:10:33]} {[%emt
00:01:22]} Rxa1 {[%clk 00:21:11]} {[%emt 00:00:16]} 21. Bxa1 {[%clk 00:10:55]}
{[%emt 00:00:08]} Qxe3+ {[%clk 00:18:46]} {[%emt 00:02:55]} 22. Qxe3 {[%clk
00:10:24]} {[%emt 00:01:01]} Rxe3 {[%clk 00:19:10]} {[%emt 00:00:05]} 23. Kf2
{[%clk 00:09:59]} {[%emt 00:00:56]} Re8 {[%clk 00:14:06]} {[%emt 00:05:34]} 24.
Bc3 {[%clk 00:08:38]} {[%emt 00:01:51]} Bxf4 {[%clk 00:13:51]} {[%emt
00:00:45]} 25. Nc2 {[%clk 00:07:44]} {[%emt 00:01:23]} Bxh2 {[%clk 00:10:05]}
{[%emt 00:04:16]} 26. Bf3 {[%clk 00:07:45]} {[%emt 00:00:30]} Bc7 {[%clk
00:07:19]} {[%emt 00:03:16]} 27. Bxd5 {[%clk 00:06:45]} {[%emt 00:01:30]} Ne7
{[%clk 00:07:17]} {[%emt 00:00:32]} 28. Bf3 {[%clk 00:05:17]} {[%emt 00:01:57]}
Bd7 {[%clk 00:03:56]} {[%emt 00:03:51]} 29. Ne3 {[%clk 00:04:18]} {[%emt
00:01:29]} Bf4 {[%clk 00:03:38]} {[%emt 00:00:48]} 30. Nc2 {[%clk 00:03:59]}
{[%emt 00:00:50]} Bf5 {[%clk 00:03:36]} {[%emt 00:00:31]} 31. Na3 {[%clk
00:03:45]} {[%emt 00:00:44]} Rb8 {[%clk 00:03:30]} {[%emt 00:00:36]} 32. g3
{[%clk 00:03:48]} {[%emt 00:00:27]} Bd6 {[%clk 00:03:31]} {[%emt 00:00:28]} 33.
Re1 {[%clk 00:03:02]} {[%emt 00:01:16]} Bd3 {[%clk 00:03:00]} {[%emt 00:01:01]}
34. Be4 {[%clk 00:01:36]} {[%emt 00:01:57]} Nf5 {[%clk 00:02:00]} {[%emt
00:01:31]} 35. Bxf5 {[%clk 00:01:21]} {[%emt 00:00:44]} Bxf5 {[%clk 00:02:19]}
{[%emt 00:00:11]} 36. Kf3 {[%clk 00:01:27]} {[%emt 00:00:24]} Bd7 {[%clk
00:02:30]} {[%emt 00:00:19]} 37. Nc2 {[%clk 00:01:02]} {[%emt 00:00:55]} Ra8
{[%clk 00:02:39]} {[%emt 00:00:21]} 38. Ne3 {[%clk 00:01:10]} {[%emt 00:00:23]}
Ra3 {[%clk 00:02:45]} {[%emt 00:00:22]} 39. Rc1 {[%clk 00:01:03]} {[%emt
00:00:38]} Rb3 {[%clk 00:02:55]} {[%emt 00:00:19]} 40. Nd5 {[%clk 00:00:53]}
{[%emt 00:00:41]} Bc6 {[%clk 00:03:01]} {[%emt 00:00:23]} 41. Ke4 {[%clk
00:01:10]} {[%emt 00:00:14]} f5+ {[%clk 00:03:16]} {[%emt 00:00:15]} 0-1

[Event "Ebbe Cup 48"]
[Site "Goteborgs Schackcentrum, Vegatan 20, Gothenburg, Sweden"]
[Date "2025.02.15"]
[Round "2.5"]
[White "Laudinger, Christian"]
[Black "Havner, Arvid"]
[Result "0-1"]
[TimeControl "90 minutes + 30 seconds per move from move one"]
[WhiteFideId "1774638"]
[BlackFideId "1769308"]
[WhiteElo "1626"]
[BlackElo "1881"]

1. f4 {[%clk 01:29:35]} {[%emt 00:01:24]} d5 {[%clk 01:28:36]} {[%emt
00:02:25]} 2. Nf3 {[%clk 01:29:58]} {[%emt 00:00:06]} Nh6 {[%clk 01:28:49]}
{[%emt 00:00:17]} 3. e3 {[%clk 01:28:51]} {[%emt 00:01:38]} g6 {[%clk
01:27:48]} {[%emt 00:01:31]} 4. c4 {[%clk 01:27:15]} {[%emt 00:02:06]} c6
{[%clk 01:26:51]} {[%emt 00:01:27]} 5. cxd5 {[%clk 01:25:14]} {[%emt 00:02:31]}
cxd5 {[%clk 01:27:15]} {[%emt 00:00:06]} 6. Nc3 {[%clk 01:23:43]} {[%emt
00:02:01]} Bg7 {[%clk 01:27:16]} {[%emt 00:00:28]} 7. d4 {[%clk 01:24:01]}
{[%emt 00:00:13]} Bg4 {[%clk 01:24:56]} {[%emt 00:02:50]} 8. Be2 {[%clk
01:21:52]} {[%emt 00:02:39]} Nc6 {[%clk 01:22:56]} {[%emt 00:02:29]} 9. Bd2
{[%clk 01:19:37]} {[%emt 00:02:45]} O-O {[%clk 01:22:38]} {[%emt 00:00:48]} 10.
O-O {[%clk 01:19:45]} {[%emt 00:00:23]} Nf5 {[%clk 01:19:47]} {[%emt 00:03:20]}
11. Qb3 {[%clk 01:14:36]} {[%emt 00:05:39]} Bxf3 {[%clk 01:18:39]} {[%emt
00:01:39]} 12. Bxf3 {[%clk 01:11:44]} {[%emt 00:03:21]} e6 {[%clk 01:18:47]}
{[%emt 00:00:22]} 13. Qd1 {[%clk 01:01:17]} {[%emt 00:10:58]} Rc8 {[%clk
01:15:43]} {[%emt 00:03:34]} 14. a3 {[%clk 00:59:42]} {[%emt 00:02:05]} Na5
{[%clk 01:14:20]} {[%emt 00:01:52]} 15. Rb1 {[%clk 00:55:54]} {[%emt 00:04:19]}
Nc4 {[%clk 01:13:19]} {[%emt 00:01:31]} 16. Qe1 {[%clk 00:53:21]} {[%emt
00:03:02]} Qb6 {[%clk 00:59:24]} {[%emt 00:14:25]} 17. Na4 {[%clk 00:49:33]}
{[%emt 00:04:18]} Qc6 {[%clk 00:58:04]} {[%emt 00:01:50]} 18. Nc5 {[%clk
00:48:47]} {[%emt 00:01:16]} Nxd4 {[%clk 00:57:49]} {[%emt 00:00:45]} 19. Nd3
{[%clk 00:42:58]} {[%emt 00:06:19]} Nxf3+ {[%clk 00:57:24]} {[%emt 00:00:54]}
20. Rxf3 {[%clk 00:42:37]} {[%emt 00:00:52]} Nxd2 {[%clk 00:57:47]} {[%emt
00:00:08]} 21. Qxd2 {[%clk 00:42:49]} {[%emt 00:00:17]} Qc2 {[%clk 00:56:05]}
{[%emt 00:02:12]} 22. Qxc2 {[%clk 00:40:22]} {[%emt 00:02:57]} Rxc2 {[%clk
00:56:18]} {[%emt 00:00:17]} 23. Rf2 {[%clk 00:36:26]} {[%emt 00:04:27]} Rfc8
{[%clk 00:56:21]} {[%emt 00:00:26]} 24. Kf1 {[%clk 00:33:55]} {[%emt 00:03:02]}
Rxf2+ {[%clk 00:56:21]} {[%emt 00:00:29]} 25. Kxf2 {[%clk 00:33:30]} {[%emt
00:00:55]} Rc2+ {[%clk 00:56:44]} {[%emt 00:00:07]} 26. Kf1 {[%clk 00:33:01]}
{[%emt 00:01:00]} Rd2 {[%clk 00:56:48]} {[%emt 00:00:25]} 27. Ne5 {[%clk
00:27:27]} {[%emt 00:06:04]} Bxe5 {[%clk 00:56:48]} {[%emt 00:00:30]} 28. fxe5
{[%clk 00:27:50]} {[%emt 00:00:07]} Kg7 {[%clk 00:57:06]} {[%emt 00:00:12]} 29.
Rc1 {[%clk 00:27:20]} {[%emt 00:01:00]} Rxb2 {[%clk 00:57:22]} {[%emt
00:00:14]} 30. Rc7 {[%clk 00:27:43]} {[%emt 00:00:07]} a6 {[%clk 00:56:18]}
{[%emt 00:01:34]} 31. a4 {[%clk 00:27:27]} {[%emt 00:00:47]} b5 {[%clk
00:56:00]} {[%emt 00:00:47]} 32. axb5 {[%clk 00:27:28]} {[%emt 00:00:30]} axb5
{[%clk 00:56:22]} {[%emt 00:00:07]} 33. Rb7 {[%clk 00:27:43]} {[%emt 00:00:15]}
b4 {[%clk 00:56:36]} {[%emt 00:00:16]} 34. h3 {[%clk 00:27:22]} {[%emt
00:00:51]} b3 {[%clk 00:56:49]} {[%emt 00:00:17]} 35. Kg1 {[%clk 00:26:07]}
{[%emt 00:01:45]} Rb1+ {[%clk 00:56:14]} {[%emt 00:01:06]} 36. Kf2 {[%clk
00:26:25]} {[%emt 00:00:12]} b2 {[%clk 00:56:36]} {[%emt 00:00:08]} 37. Kg3
{[%clk 00:26:49]} {[%emt 00:00:06]} Re1 {[%clk 00:56:14]} {[%emt 00:00:51]} 38.
Rxb2 {[%clk 00:26:48]} {[%emt 00:00:32]} Rxe3+ {[%clk 00:56:36]} {[%emt
00:00:08]} 39. Kf4 {[%clk 00:26:41]} {[%emt 00:00:37]} Re4+ {[%clk 00:57:01]}
{[%emt 00:00:05]} 40. Kf3 {[%clk 00:26:49]} {[%emt 00:00:21]} Rxe5 {[%clk
00:57:23]} {[%emt 00:00:08]} 0-1

[Event "Ebbe Cup 48"]
[Site "Goteborgs Schackcentrum, Vegatan 20, Gothenburg, Sweden"]
[Date "2025.02.15"]
[Round "2.6"]
[White "Gustavsson, Ville"]
[Black "Sivarama, Saadhvik"]
[Result "1/2-1/2"]
[TimeControl "90 minutes + 30 seconds per move from move one"]
[WhiteFideId "1792822"]
[BlackFideId "1773720"]
[WhiteElo "1884"]
[BlackElo "1657"]

1. e4 {[%clk 01:30:20]} {[%emt 00:00:39]} c5 {[%clk 01:30:44]} {[%emt
00:00:16]} 2. Nc3 {[%clk 01:30:07]} {[%emt 00:00:43]} d6 {[%clk 01:30:42]}
{[%emt 00:00:32]} 3. f4 {[%clk 01:27:09]} {[%emt 00:03:29]} Nc6 {[%clk
01:27:34]} {[%emt 00:03:38]} 4. Nf3 {[%clk 01:26:29]} {[%emt 00:01:09]} Bg4
{[%clk 01:24:49]} {[%emt 00:03:15]} 5. Bc4 {[%clk 01:24:50]} {[%emt 00:02:09]}
e6 {[%clk 01:20:36]} {[%emt 00:04:44]} 6. Bb5 {[%clk 01:16:38]} {[%emt
00:08:42]} Nge7 {[%clk 01:13:38]} {[%emt 00:07:28]} 7. h3 {[%clk 01:13:45]}
{[%emt 00:03:22]} Bxf3 {[%clk 01:13:36]} {[%emt 00:00:33]} 8. Qxf3 {[%clk
01:14:13]} {[%emt 00:00:02]} a6 {[%clk 01:13:50]} {[%emt 00:00:15]} 9. Bxc6+
{[%clk 01:14:29]} {[%emt 00:00:15]} Nxc6 {[%clk 01:14:08]} {[%emt 00:00:12]} 10.
Ne2 {[%clk 01:07:36]} {[%emt 00:07:23]} Be7 {[%clk 01:09:31]} {[%emt 00:05:06]}
11. c3 {[%clk 01:03:57]} {[%emt 00:04:09]} Qd7 {[%clk 01:06:36]} {[%emt
00:03:25]} 12. d4 {[%clk 01:00:42]} {[%emt 00:03:45]} cxd4 {[%clk 01:06:30]}
{[%emt 00:00:36]} 13. Nxd4 {[%clk 00:55:49]} {[%emt 00:05:23]} Nxd4 {[%clk
01:04:59]} {[%emt 00:02:01]} 14. cxd4 {[%clk 00:56:17]} {[%emt 00:00:02]} d5
{[%clk 01:05:12]} {[%emt 00:00:18]} 15. e5 {[%clk 00:55:34]} {[%emt 00:01:13]}
Bb4+ {[%clk 01:05:31]} {[%emt 00:00:11]} 16. Kf2 {[%clk 00:55:48]} {[%emt
00:00:15]} Rc8 {[%clk 01:03:19]} {[%emt 00:02:43]} 17. Qb3 {[%clk 00:50:34]}
{[%emt 00:05:43]} Be7 {[%clk 01:01:41]} {[%emt 00:02:09]} 18. Be3 {[%clk
00:48:28]} {[%emt 00:02:36]} Rc4 {[%clk 00:58:05]} {[%emt 00:04:06]} 19. Rhc1
{[%clk 00:45:12]} {[%emt 00:03:46]} Rb4 {[%clk 00:56:04]} {[%emt 00:02:30]} 20.
Qc3 {[%clk 00:42:27]} {[%emt 00:03:14]} O-O {[%clk 00:55:10]} {[%emt 00:01:25]}
21. b3 {[%clk 00:40:03]} {[%emt 00:02:54]} Rb6 {[%clk 00:54:04]} {[%emt
00:01:37]} 22. Qc7 {[%clk 00:36:56]} {[%emt 00:03:37]} Qxc7 {[%clk 00:53:55]}
{[%emt 00:00:39]} 23. Rxc7 {[%clk 00:37:24]} {[%emt 00:00:02]} Ba3 {[%clk
00:52:42]} {[%emt 00:01:43]} 24. Bc1 {[%clk 00:34:13]} {[%emt 00:03:40]} Bb4
{[%clk 00:51:45]} {[%emt 00:01:27]} 25. a3 {[%clk 00:32:50]} {[%emt 00:01:54]}
Ba5 {[%clk 00:52:09]} {[%emt 00:00:06]} 26. b4 {[%clk 00:32:51]} {[%emt
00:00:29]} Rxb4 {[%clk 00:52:17]} {[%emt 00:00:22]} 27. Rc5 {[%clk 00:30:24]}
{[%emt 00:02:57]} Rb5 {[%clk 00:52:13]} {[%emt 00:00:34]} 28. Rxb5 {[%clk
00:29:49]} {[%emt 00:01:05]} axb5 {[%clk 00:52:38]} {[%emt 00:00:05]} 29. Rb1
{[%clk 00:28:21]} {[%emt 00:01:58]} b6 {[%clk 00:52:04]} {[%emt 00:01:03]} 30.
Ke3 {[%clk 00:25:27]} {[%emt 00:03:24]} h6 {[%clk 00:51:03]} {[%emt 00:01:31]}
31. Rxb5 {[%clk 00:23:23]} {[%emt 00:02:34]} Ra8 {[%clk 00:50:21]} {[%emt
00:01:13]} 32. g4 {[%clk 00:20:44]} {[%emt 00:03:08]} Rc8 {[%clk 00:47:29]}
{[%emt 00:03:23]} 33. Bd2 {[%clk 00:18:30]} {[%emt 00:02:43]} Bxd2+ {[%clk
00:47:51]} {[%emt 00:00:09]} 34. Kxd2 {[%clk 00:18:58]} Rc4 {[%clk 00:48:03]}
{[%emt 00:00:18]} 35. Kd3 {[%clk 00:16:32]} {[%emt 00:02:57]} Ra4 {[%clk
00:48:06]} {[%emt 00:00:26]} 36. Rb3 {[%clk 00:16:09]} {[%emt 00:00:53]} Ra6
{[%clk 00:48:25]} {[%emt 00:00:11]} 37. Kc3 {[%clk 00:15:50]} {[%emt 00:00:50]}
Ra4 {[%clk 00:47:45]} {[%emt 00:01:09]} 38. h4 {[%clk 00:12:09]} {[%emt
00:04:11]} 1/2-1/2

[Event "Ebbe Cup 48"]
[Site "Goteborgs Schackcentrum, Vegatan 20, Gothenburg, Sweden"]
[Date "2025.02.15"]
[Round "2.7"]
[White "Madevan Vaishnavi, Yaashvan"]
[Black "Hamsten, Martin"]
[Result "1-0"]
[TimeControl "90 minutes + 30 seconds per move from move one"]
[WhiteFideId "1772180"]
[BlackFideId "1780425"]
[WhiteElo "1867"]
[BlackElo "1669"]

1. e4 {[%clk 01:30:56]} {[%emt 00:00:06]} c6 {[%clk 01:31:24]} {[%emt
00:00:04]} 2. d4 {[%clk 01:31:15]} {[%emt 00:00:10]} d5 {[%clk 01:31:49]}
{[%emt 00:00:06]} 3. e5 {[%clk 01:31:33]} {[%emt 00:00:12]} Bf5 {[%clk
01:32:14]} {[%emt 00:00:05]} 4. h4 {[%clk 01:31:54]} {[%emt 00:00:09]} h5
{[%clk 01:32:38]} {[%emt 00:00:05]} 5. Bd3 {[%clk 01:32:18]} {[%emt 00:00:06]}
Bxd3 {[%clk 01:32:58]} {[%emt 00:00:10]} 6. Qxd3 {[%clk 01:32:38]} {[%emt
00:00:10]} Qa5+ {[%clk 01:33:13]} {[%emt 00:00:16]} 7. Nc3 {[%clk 01:32:15]}
{[%emt 00:00:53]} e6 {[%clk 01:33:08]} {[%emt 00:00:36]} 8. Nge2 {[%clk
01:32:24]} {[%emt 00:00:19]} Ne7 {[%clk 01:31:34]} {[%emt 00:02:05]} 9. Bd2
{[%clk 01:27:11]} {[%emt 00:05:43]} Qa6 {[%clk 01:28:26]} {[%emt 00:03:38]} 10.
Qxa6 {[%clk 01:25:29]} {[%emt 00:02:12]} Nxa6 {[%clk 01:28:47]} {[%emt
00:00:08]} 11. O-O {[%clk 01:25:47]} {[%emt 00:00:12]} Nf5 {[%clk 01:27:48]}
{[%emt 00:01:30]} 12. g3 {[%clk 01:25:17]} {[%emt 00:00:59]} Be7 {[%clk
01:23:57]} {[%emt 00:04:22]} 13. Nd1 {[%clk 01:16:23]} {[%emt 00:09:24]} c5
{[%clk 01:16:43]} {[%emt 00:07:44]} 14. c3 {[%clk 01:16:15]} {[%emt 00:00:38]}
cxd4 {[%clk 01:15:59]} {[%emt 00:01:14]} 15. Nxd4 {[%clk 01:16:14]} {[%emt
00:00:31]} Nxd4 {[%clk 01:16:06]} {[%emt 00:00:23]} 16. cxd4 {[%clk 01:16:35]}
{[%emt 00:00:09]} Rc8 {[%clk 01:15:48]} {[%emt 00:00:48]} 17. Ne3 {[%emt
00:02:16]} g5 {[%clk 01:15:10]} 18. hxg5 {[%clk 01:06:55]} {[%emt 00:09:31]}
Bxg5 {[%clk 01:15:22]} {[%emt 00:00:18]} 19. f4 {[%clk 01:06:18]} {[%emt
00:01:07]} Be7 {[%clk 01:15:45]} {[%emt 00:00:08]} 20. f5 {[%clk 01:05:26]}
{[%emt 00:01:22]} Bg5 {[%clk 01:15:22]} {[%emt 00:00:52]} 21. Rad1 {[%clk
00:58:15]} {[%emt 00:07:41]} Bh6 {[%clk 01:10:19]} {[%emt 00:05:32]} 22. fxe6
{[%clk 00:56:41]} {[%emt 00:02:06]} fxe6 {[%clk 01:10:15]} {[%emt 00:00:33]} 23.
Rf6 {[%clk 00:56:58]} {[%emt 00:00:11]} Bxe3+ {[%clk 01:08:56]} {[%emt
00:01:51]} 24. Bxe3 {[%clk 00:57:19]} {[%emt 00:00:09]} Rc6 {[%clk 01:06:05]}
{[%emt 00:03:22]} 25. a3 {[%clk 00:51:51]} {[%emt 00:05:58]} Rg8 {[%clk
01:05:29]} {[%emt 00:01:05]} 26. Kh2 {[%clk 00:44:43]} {[%emt 00:07:38]} Rh8
{[%clk 01:04:09]} {[%emt 00:01:50]} 27. Kh3 {[%clk 00:43:28]} {[%emt 00:01:46]}
Nb8 {[%clk 01:02:03]} {[%emt 00:02:36]} 28. Kh4 {[%clk 00:39:22]} {[%emt
00:04:36]} Nd7 {[%clk 01:00:23]} {[%emt 00:02:10]} 29. Rg6 {[%clk 00:37:11]}
{[%emt 00:02:37]} Kf7 {[%clk 00:57:55]} {[%emt 00:03:02]} 30. Kg5 {[%clk
00:36:22]} {[%emt 00:01:17]} Rc2 {[%clk 00:51:55]} {[%emt 00:06:32]} 31. Rf1+
{[%clk 00:35:20]} {[%emt 00:01:32]} Ke7 {[%clk 00:52:11]} {[%emt 00:00:14]} 32.
Rg7+ {[%clk 00:35:42]} {[%emt 00:00:06]} Ke8 {[%clk 00:51:35]} {[%emt
00:01:07]} 33. Rff7 {[%clk 00:35:25]} {[%emt 00:00:46]} Rc7 {[%clk 00:50:46]}
{[%emt 00:01:20]} 34. Re7+ {[%clk 00:33:32]} {[%emt 00:02:23]} Kd8 {[%clk
00:51:02]} {[%emt 00:00:14]} 35. Rxe6 {[%clk 00:32:32]} {[%emt 00:01:30]} Nf8
{[%clk 00:47:04]} {[%emt 00:04:27]} 36. Rd6+ {[%clk 00:32:37]} {[%emt
00:00:26]} Kc8 {[%clk 00:47:03]} {[%emt 00:00:31]} 37. Rxc7+ {[%clk 00:32:50]}
{[%emt 00:00:17]} Kxc7 {[%clk 00:47:24]} {[%emt 00:00:08]} 38. Bf4 {[%clk
00:31:06]} {[%emt 00:02:14]} Nd7 {[%clk 00:44:34]} {[%emt 00:03:21]} 39. Rxd5
{[%clk 00:30:15]} {[%emt 00:01:21]} Nb6 {[%clk 00:43:13]} {[%emt 00:01:50]} 40.
e6+ {[%clk 00:29:45]} {[%emt 00:00:59]} Kc8 {[%clk 00:43:24]} {[%emt 00:00:21]}
41. Rc5+ {[%clk 00:30:05]} {[%emt 00:00:09]} Kd8 {[%clk 00:43:37]} {[%emt
00:00:17]} 42. d5 {[%clk 00:29:53]} {[%emt 00:00:42]} Nc8 {[%clk 00:43:16]}
{[%emt 00:00:52]} 43. d6 {[%clk 00:29:34]} {[%emt 00:00:50]} Rg8+ {[%clk
00:42:35]} {[%emt 00:01:10]} 44. Kf6 {[%clk 00:29:13]} {[%emt 00:00:50]} 1-0

[Event "Ebbe Cup 48"]
[Site "Goteborgs Schackcentrum, Vegatan 20, Gothenburg, Sweden"]
[Date "2025.02.15"]
[Round "2.8"]
[White "Hernebring, Marten"]
[Black "Hitcher, Oscar"]
[Result "0-1"]
[TimeControl "90 minutes + 30 seconds per move from move one"]
[WhiteFideId "1776894"]
[BlackFideId "1746901"]
[WhiteElo "1663"]
[BlackElo "1712"]

1. e4 {[%emt 00:01:59]} e6 {[%clk 01:28:43]} {[%emt 00:00:21]} 2. d4 {[%clk
01:30:36]} {[%emt 00:00:50]} d5 {[%clk 01:28:33]} {[%emt 00:00:40]} 3. Nc3
{[%clk 01:30:59]} {[%emt 00:00:07]} dxe4 {[%clk 01:28:34]} {[%emt 00:00:29]} 4.
Nxe4 {[%clk 01:30:58]} {[%emt 00:00:31]} Nd7 {[%clk 01:28:34]} {[%emt
00:00:31]} 5. Nf3 {[%clk 01:29:14]} {[%emt 00:02:14]} Ngf6 {[%clk 01:28:14]}
{[%emt 00:00:49]} 6. Nxf6+ {[%clk 01:26:00]} {[%emt 00:03:44]} Nxf6 {[%clk
01:28:37]} {[%emt 00:00:07]} 7. Bd3 {[%clk 01:25:24]} {[%emt 00:01:06]} Be7
{[%clk 01:27:59]} {[%emt 00:01:08]} 8. Qe2 {[%clk 01:24:08]} {[%emt 00:01:46]}
O-O {[%clk 01:28:08]} {[%emt 00:00:21]} 9. g4 {[%clk 01:23:21]} {[%emt
00:01:17]} b6 {[%clk 01:25:24]} {[%emt 00:03:14]} 10. Rg1 {[%clk 01:23:34]}
{[%emt 00:00:18]} Bb7 {[%clk 01:24:16]} {[%emt 00:01:37]} 11. Be3 {[%clk
01:22:14]} {[%emt 00:01:49]} Nd5 {[%clk 01:19:52]} {[%emt 00:04:55]} 12. O-O-O
{[%clk 01:22:16]} {[%emt 00:00:28]} Nxe3 {[%clk 01:18:03]} {[%emt 00:02:19]} 13.
fxe3 {[%clk 01:22:07]} {[%emt 00:00:39]} Qd5 {[%clk 01:16:30]} {[%emt
00:02:04]} 14. Nd2 {[%clk 01:19:32]} {[%emt 00:03:05]} Qxa2 {[%clk 01:10:54]}
{[%emt 00:06:05]} 15. g5 {[%clk 01:19:09]} {[%emt 00:00:54]} Bb4 {[%clk
01:05:11]} {[%emt 00:06:13]} 16. Nb1 {[%clk 01:13:43]} {[%emt 00:05:55]} Qd5
{[%clk 01:02:00]} {[%emt 00:03:40]} 17. c3 {[%clk 01:13:20]} {[%emt 00:00:54]}
Be7 {[%clk 01:01:44]} {[%emt 00:00:46]} 18. Bxh7+ {[%clk 01:06:22]} {[%emt
00:07:28]} Kxh7 {[%clk 01:00:07]} {[%emt 00:02:07]} 19. Qh5+ {[%clk 01:06:46]}
{[%emt 00:00:05]} Kg8 {[%clk 01:00:13]} {[%emt 00:00:25]} 20. Rg3 {[%clk
01:07:11]} {[%emt 00:00:05]} f6 {[%clk 00:48:22]} {[%emt 00:12:20]} 21. e4
{[%clk 00:53:33]} {[%emt 00:14:09]} Qxe4 {[%clk 00:43:06]} {[%emt 00:05:45]} 22.
g6 {[%clk 00:36:17]} {[%emt 00:17:47]} Qf4+ {[%clk 00:43:25]} {[%emt 00:00:12]}
23. Nd2 {[%clk 00:36:32]} {[%emt 00:00:14]} Qh6 {[%clk 00:43:34]} {[%emt
00:00:21]} 24. Qe2 {[%clk 00:36:55]} {[%emt 00:00:08]} Bc8 {[%clk 00:42:30]}
{[%emt 00:01:33]} 25. d5 {[%clk 00:26:53]} {[%emt 00:10:31]} Bd6 {[%clk
00:41:53]} {[%emt 00:01:07]} 26. Rg2 {[%clk 00:24:46]} {[%emt 00:02:38]} exd5
{[%clk 00:41:20]} {[%emt 00:01:02]} 27. c4 {[%clk 00:23:24]} {[%emt 00:01:53]}
Bh3 {[%clk 00:40:21]} {[%emt 00:01:29]} 28. Rgg1 {[%clk 00:18:58]} {[%emt
00:04:56]} Rfe8 {[%clk 00:39:40]} {[%emt 00:01:10]} 29. Qf3 {[%clk 00:18:53]}
{[%emt 00:00:34]} dxc4 {[%clk 00:39:12]} {[%emt 00:00:59]} 30. Rde1 {[%clk
00:16:36]} {[%emt 00:02:48]} Bb4 {[%clk 00:36:21]} {[%emt 00:03:21]} 31. Qd5+
{[%clk 00:16:12]} {[%emt 00:00:54]} Kh8 {[%clk 00:35:59]} {[%emt 00:00:52]} 32.
Rxe8+ {[%clk 00:07:34]} {[%emt 00:09:08]} Rxe8 {[%clk 00:36:03]} {[%emt
00:00:26]} 33. Qf7 {[%clk 00:04:09]} {[%emt 00:03:55]} Qxd2+ {[%clk 00:36:01]}
{[%emt 00:00:32]} 34. Kb1 {[%clk 00:04:31]} {[%emt 00:00:08]} Bf5+ {[%clk
00:28:04]} {[%emt 00:08:26]} 35. Ka2 {[%clk 00:04:23]} {[%emt 00:00:39]} Qd7
{[%clk 00:27:31]} {[%emt 00:01:02]} 36. Rd1 {[%clk 00:01:36]} {[%emt 00:03:17]}
Qa4# {[%clk 00:27:17]} 0-1